Workbook

Sheet Моя кредитна картка
L2: Калькулятор
M3: «МОЯ КРЕДИТНА КАРТКА» – на поточні потреби, кредитний ліміт (овердрафт) на «зарплатну картку»
E5: ячейки блакитногого кольору заповнюються Клієнтом виходячи з обраних умов кредитування
D6: Умови кредитування, обрані споживачем:
D7: Дата видачі кредиту: | K7: =TODAY() -> 2024-04-01 | AC7: =YEAR(K11) -> 2025 | AD7: =YEAR(K7) -> 2024 | AE7: =MONTH(K11) -> 3 | AF7: =MONTH(K7) -> 4
D8: Вартість предмету іпотеки, грн.: | K8: 0
D9: Сума кредиту*, грн.: | K9: 10000 | L9: *до 2-х середньомісячних заробітних плат за останні 6 місяців
D10: Кількість платежів | K10: 12
D11: Кінцева дата повернення кредиту: | K11: =K7+((K10/12)*365)-1 -> 2025-03-31 | AC11: =AC7-AD7 -> 1 | AE11: =AE7-AF7 -> -1
D12: Порядок погашення кредиту, грн.: | K12: щомісяця по | L12: =CEILING(K9/K10,1)*0 -> 0 | M12: останній платіж | O12: =K9-(L12*(K10-1)) -> 10000
D13: Дата погашення кредиту та процентів: | K13: щомісяця | L13: 5 | M13: числа | AE13: =12+AE11 -> 11
D14: Процентна ставка (фіксована): | K14: 0.24 | L14: річних | AE14: =24+AE11 -> 23
AE15: =36+AE11 -> 35
D16: Платежі за додаткові та сукупні послуги:
D17: разова комісія за видачу готівкових коштів: | K17: 0 | L17: від суми наданого кредиту | AD17: =IF(AC11=0,AE11,IF(AC11=1,AE13,IF(AC11=2,AE14,AE15))) -> 11
D18: Щомісячна комісія за проведення розрахунків: | K18: 0.01 | L18: від суми середньоденного залишку овердрафту за місяць | O18: =K9*K18 -> 100
D19: щорічна комісія за проведення розрахунків: | K19: 0 | L19: від суми наданого кредиту
D20: послуги нотаріуса | K20: 0 | L20: грн.
D21: послуги оцінювача | K21: 0 | L21: грн.
D22: послуги страховика | K22: 0 | L22: від вартості предмету іпотеки (один раз на рік)
D23: державне мито | K23: 0 | L23: від вартості предмету іпотеки
D24: пенсійний збір | K24: 0 | L24: від вартості предмету іпотеки
U27: Дата розрахунку: | V27: =TEXT(K7,"DD.MM.YYYY")&" р." -> DD.MM.YYYY р.
D30: ТАБЛИЦЯ обчислення загальної вартості кредиту для споживача та реальної річної процентної ставки за договором про споживчий кредит
D32: № з/п | E32: Дата видачі кредиту/ дата платежу | H32: Кількість днів у розрахун- ковому періоді | I32: Чиста сума кредиту/ сума платежу за розрахунковий період, грн. | J32: Види платежів за кредитом | V32: Реальна річна процентна ставка, % | W32: Загальна вартість кредиту, грн
J33: сума кредиту за договором | K33: проценти за користування кредитом | L33: платежі за додаткові та/або супутні послуги
L34: банку | P34: кредитного посередника (за наявності) | R34: третіх осіб
A35: фільтр | L35: щомісячна комісія за проведення розрахунків | M35: розрахунково-касове обслуговування | N35: комісія за видачу готівкових коштів | O35: інші послуги банку | P35: комісійний збір | Q35: інша плата за послуги кредитного посередника | R35: послуги нотаріуса | S35: послуги оцінювача | T35: послуги страховика | U35: інші послуги третіх осіб
D36: 1 | E36: 2 | F36: 4 | G36: 5 | H36: 3 | I36: 4 | J36: 5 | K36: 6 | L36: 7 | M36: 8 | N36: 9 | O36: 10 | P36: 11 | Q36: 12 | R36: 13 | S36: 14 | T36: 15 | U36: 16 | V36: 17 | W36: 18
A37: =IF(B37<=$K$11,1,0) -> 1 | D37: 1 | E37: =K7 -> 2024-04-01 | H37: х | I37: =SUM(J37:U37) -> -10000 | J37: =-K9 -> -10000 | K37: х | N37: =K9*K17 -> 0 | O37: =K9*K19 -> 0 | R37: =K20+(K23*K8)+(K24*K8) -> 0 | S37: =K21 -> 0 | T37: =K8*K22 -> 0 | V37: х | W37: х
A38: 0 | E38: =EOMONTH(K7,0) -> 2024-04-30 | H38: =IF(E38=1,G38-G37,0) -> 0 | I38: =SUM(J38:O38) -> 0
A39: =IF(DAY($K$11)<=5,IF(B39<=$K$10,1,0),IF(B39<=$K$10+1,1,0)) -> 1 | B39: 1 | D39: =D38+1 -> 1 | E39: =MIN(DATE(YEAR(F39),MONTH(F39)+1,DAY($L$13)),$K$11) -> 2024-05-05 | F39: =K7 -> 2024-04-01 | G39: =IF(DAY($K$11)>=6,MIN(EOMONTH(F39,0),$K$11),IF(B39=$K$10,$K$11,EOMONTH(F39,0))) -> 2024-04-30 | H39: =IF(A39=1,IF(E39=$K$11,G39-F39,G39-F39+1),0) -> 30 | I39: =SUM(J39:Q39) -> 296.72 | J39: =IF(A39=1,IF(E39=$K$11,$K$9,0),0) -> 0 | K39: =ROUND(($K$9-SUM($J$39:J39))*(($K$14/(IF(ROUND(YEAR(F39)/4,0)-YEAR(F39)/4=0,366,365)))*H39),2) -> 196.72 | L39: =IF(A39=1,IF(AND(YEAR($K$11)=YEAR(EDATE(E38,1)),MONTH($K$11)=MONTH(EDATE(E38,1))),$O$18-$O$42,$O$18),0) -> 100 | V39: х | W39: х
A40: =IF(DAY($K$11)<=5,IF(B40<=$K$10,1,0),IF(B40<=$K$10+1,1,0)) -> 1 | B40: =B39+1 -> 2 | D40: 2 | E40: =MIN(DATE(YEAR(F40),MONTH(F40)+1,DAY($L$13)),$K$11) -> 2024-06-05 | F40: =G39+1 -> 2024-05-01 | G40: =IF(DAY($K$11)>=6,MIN(EOMONTH(F40,0),$K$11),IF(B40=$K$10,$K$11,EOMONTH(F40,0))) -> 2024-05-31 | H40: =IF(A40=1,IF(E40=$K$11,G40-F40,G40-F40+1),0) -> 31 | I40: 303.28 | J40: =IF(A40=1,IF(E40=$K$11,$K$9,0),0) -> 0 | K40: =ROUND(($K$9-SUM($J$39:J39))*(($K$14/(IF(ROUND(YEAR(F40)/4,0)-YEAR(F40)/4=0,366,365)))*H40),2) -> 203.28 | L40: 100 | V40: х | W40: х
A41: 1 | B41: 3 | D41: 3 | E41: 2024-07-05 | F41: 2024-06-01 | G41: 2024-06-30 | H41: 30 | I41: 296.72 | J41: 0 | K41: =ROUND(($K$9-SUM($J$39:J40))*(($K$14/(IF(ROUND(YEAR(F41)/4,0)-YEAR(F41)/4=0,366,365)))*H41),2) -> 196.72 | L41: 100 | V41: х | W41: х
A42: 1 | B42: 4 | D42: 4 | E42: 2024-08-05 | F42: 2024-07-01 | G42: 2024-07-31 | H42: 31 | I42: 303.28 | J42: 0 | K42: =ROUND(($K$9-SUM($J$39:J41))*(($K$14/(IF(ROUND(YEAR(F42)/4,0)-YEAR(F42)/4=0,366,365)))*H42),2) -> 203.28 | L42: 100 | V42: х | W42: х
A43: 1 | B43: 5 | D43: 5 | E43: 2024-09-05 | F43: 2024-08-01 | G43: 2024-08-31 | H43: 31 | I43: 303.28 | J43: 0 | K43: =ROUND(($K$9-SUM($J$39:J42))*(($K$14/(IF(ROUND(YEAR(F43)/4,0)-YEAR(F43)/4=0,366,365)))*H43),2) -> 203.28 | L43: 100 | V43: х | W43: х
A44: 1 | B44: 6 | D44: 6 | E44: 2024-10-05 | F44: 2024-09-01 | G44: 2024-09-30 | H44: 30 | I44: 296.72 | J44: 0 | K44: =ROUND(($K$9-SUM($J$39:J43))*(($K$14/(IF(ROUND(YEAR(F44)/4,0)-YEAR(F44)/4=0,366,365)))*H44),2) -> 196.72 | L44: 100 | V44: х | W44: х
A45: 1 | B45: 7 | D45: 7 | E45: 2024-11-05 | F45: 2024-10-01 | G45: 2024-10-31 | H45: 31 | I45: 303.28 | J45: 0 | K45: =ROUND(($K$9-SUM($J$39:J44))*(($K$14/(IF(ROUND(YEAR(F45)/4,0)-YEAR(F45)/4=0,366,365)))*H45),2) -> 203.28 | L45: 100 | V45: х | W45: х
A46: 1 | B46: 8 | D46: 8 | E46: 2024-12-05 | F46: 2024-11-01 | G46: 2024-11-30 | H46: 30 | I46: 296.72 | J46: 0 | K46: =ROUND(($K$9-SUM($J$39:J45))*(($K$14/(IF(ROUND(YEAR(F46)/4,0)-YEAR(F46)/4=0,366,365)))*H46),2) -> 196.72 | L46: 100 | V46: х | W46: х
A47: 1 | B47: 9 | D47: 9 | E47: 2025-01-05 | F47: 2024-12-01 | G47: 2024-12-31 | H47: 31 | I47: 303.28 | J47: 0 | K47: =ROUND(($K$9-SUM($J$39:J46))*(($K$14/(IF(ROUND(YEAR(F47)/4,0)-YEAR(F47)/4=0,366,365)))*H47),2) -> 203.28 | L47: 100 | V47: х | W47: х
A48: 1 | B48: 10 | D48: 10 | E48: 2025-02-05 | F48: 2025-01-01 | G48: 2025-01-31 | H48: 31 | I48: 303.84 | J48: 0 | K48: =ROUND(($K$9-SUM($J$39:J47))*(($K$14/(IF(ROUND(YEAR(F48)/4,0)-YEAR(F48)/4=0,366,365)))*H48),2) -> 203.84 | L48: 100 | V48: х | W48: х
A49: 1 | B49: 11 | D49: 11 | E49: 2025-03-05 | F49: 2025-02-01 | G49: 2025-02-28 | H49: 28 | I49: 284.11 | J49: 0 | K49: =ROUND(($K$9-SUM($J$39:J48))*(($K$14/(IF(ROUND(YEAR(F49)/4,0)-YEAR(F49)/4=0,366,365)))*H49),2) -> 184.11 | L49: 100 | V49: х | W49: х
A50: 1 | B50: 12 | D50: 12 | E50: 2025-03-31 | F50: 2025-03-01 | G50: 2025-03-31 | H50: 30 | I50: 10297.26 | J50: 10000 | K50: =ROUND(($K$9-SUM($J$39:J49))*(($K$14/(IF(ROUND(YEAR(F50)/4,0)-YEAR(F50)/4=0,366,365)))*H50),2) -> 197.26 | L50: 100 | V50: х | W50: х
A51: 1 | B51: 13 | D51: 13 | E51: 2025-03-31 | F51: =G50+1 -> 2025-04-01 | G51: 2025-03-31 | H51: -1 | I51: 10100 | J51: 10000 | K51: =ROUND(($K$9-SUM($J$39:J50))*(($K$14/(IF(ROUND(YEAR(F51)/4,0)-YEAR(F51)/4=0,366,365)))*H51),2) -> 0 | L51: 100 | V51: х | W51: х
A52: =IF(B52<=$K$10,1,0) -> 0 | B52: 14 | D52: 14 | E52: =IF(AND(YEAR($K$11)=YEAR(EDATE(E51,1)),MONTH($K$11)=MONTH(EDATE(E51,1))),$K$11,EDATE(E51,1)) -> 2025-04-30 | F52: =EOMONTH(E51,0)-E51 -> 0 | G52: =E52-EOMONTH(E51,0) -> 30 | H52: =IF(E52=1,G52-G51,0) -> 0 | I52: -10197.26 | J52: =IF(B52<$K$10,$L$12,-$J$37-SUM($J$39:J51)) -> -10000 | K52: =ROUND(($K$9-SUM($J$39:J51))*(($K$14/(IF(ROUND(YEAR(E51)/4,0)-YEAR(E51)/4=0,366,365)))*F52)+($K$9-SUM($J$39:J51))*(($K$14/(IF(ROUND(YEAR(E52)/4,0)-YEAR(E52)/4=0,366,365)))*G52),2) -> -197.26 | L52: 0 | V52: х | W52: х
A53: 0 | B53: 15 | D53: 15 | E53: 2025-05-30 | F53: 0 | G53: 30 | H53: 0 | I53: 0 | J53: =IF(B53<$K$10,$L$12,-$J$37-SUM($J$39:J52)) -> 0 | K53: =ROUND(($K$9-SUM($J$39:J52))*(($K$14/(IF(ROUND(YEAR(E52)/4,0)-YEAR(E52)/4=0,366,365)))*F53)+($K$9-SUM($J$39:J52))*(($K$14/(IF(ROUND(YEAR(E53)/4,0)-YEAR(E53)/4=0,366,365)))*G53),2) -> 0 | L53: 0 | V53: х | W53: х
A54: 0 | B54: 16 | D54: 16 | E54: 2025-06-30 | F54: 1 | G54: 30 | H54: 0 | I54: 0 | J54: =IF(B54<$K$10,$L$12,-$J$37-SUM($J$39:J53)) -> 0 | K54: =ROUND(($K$9-SUM($J$39:J53))*(($K$14/(IF(ROUND(YEAR(E53)/4,0)-YEAR(E53)/4=0,366,365)))*F54)+($K$9-SUM($J$39:J53))*(($K$14/(IF(ROUND(YEAR(E54)/4,0)-YEAR(E54)/4=0,366,365)))*G54),2) -> 0 | L54: 0 | V54: х | W54: х
A55: 0 | B55: 17 | D55: 17 | E55: 2025-07-30 | F55: 0 | G55: 30 | H55: 0 | I55: 0 | J55: =IF(B55<$K$10,$L$12,-$J$37-SUM($J$39:J54)) -> 0 | K55: =ROUND(($K$9-SUM($J$39:J54))*(($K$14/(IF(ROUND(YEAR(E54)/4,0)-YEAR(E54)/4=0,366,365)))*F55)+($K$9-SUM($J$39:J54))*(($K$14/(IF(ROUND(YEAR(E55)/4,0)-YEAR(E55)/4=0,366,365)))*G55),2) -> 0 | L55: 0 | V55: х | W55: х
A56: 0 | B56: 18 | D56: 18 | E56: 2025-08-30 | F56: 1 | G56: 30 | H56: 0 | I56: 0 | J56: =IF(B56<$K$10,$L$12,-$J$37-SUM($J$39:J55)) -> 0 | K56: =ROUND(($K$9-SUM($J$39:J55))*(($K$14/(IF(ROUND(YEAR(E55)/4,0)-YEAR(E55)/4=0,366,365)))*F56)+($K$9-SUM($J$39:J55))*(($K$14/(IF(ROUND(YEAR(E56)/4,0)-YEAR(E56)/4=0,366,365)))*G56),2) -> 0 | L56: 0 | V56: х | W56: х
A57: 0 | B57: 19 | D57: 19 | E57: 2025-09-30 | F57: 1 | G57: 30 | H57: 0 | I57: 0 | J57: =IF(B57<$K$10,$L$12,-$J$37-SUM($J$39:J56)) -> 0 | K57: =ROUND(($K$9-SUM($J$39:J56))*(($K$14/(IF(ROUND(YEAR(E56)/4,0)-YEAR(E56)/4=0,366,365)))*F57)+($K$9-SUM($J$39:J56))*(($K$14/(IF(ROUND(YEAR(E57)/4,0)-YEAR(E57)/4=0,366,365)))*G57),2) -> 0 | L57: 0 | V57: х | W57: х
A58: 0 | B58: 20 | D58: 20 | E58: 2025-10-30 | F58: 0 | G58: 30 | H58: 0 | I58: 0 | J58: =IF(B58<$K$10,$L$12,-$J$37-SUM($J$39:J57)) -> 0 | K58: =ROUND(($K$9-SUM($J$39:J57))*(($K$14/(IF(ROUND(YEAR(E57)/4,0)-YEAR(E57)/4=0,366,365)))*F58)+($K$9-SUM($J$39:J57))*(($K$14/(IF(ROUND(YEAR(E58)/4,0)-YEAR(E58)/4=0,366,365)))*G58),2) -> 0 | L58: 0 | V58: х | W58: х
A59: 0 | B59: 21 | D59: 21 | E59: 2025-11-30 | F59: 1 | G59: 30 | H59: 0 | I59: 0 | J59: =IF(B59<$K$10,$L$12,-$J$37-SUM($J$39:J58)) -> 0 | K59: =ROUND(($K$9-SUM($J$39:J58))*(($K$14/(IF(ROUND(YEAR(E58)/4,0)-YEAR(E58)/4=0,366,365)))*F59)+($K$9-SUM($J$39:J58))*(($K$14/(IF(ROUND(YEAR(E59)/4,0)-YEAR(E59)/4=0,366,365)))*G59),2) -> 0 | L59: 0 | V59: х | W59: х
A60: 0 | B60: 22 | D60: 22 | E60: 2025-12-30 | F60: 0 | G60: 30 | H60: 0 | I60: 0 | J60: =IF(B60<$K$10,$L$12,-$J$37-SUM($J$39:J59)) -> 0 | K60: =ROUND(($K$9-SUM($J$39:J59))*(($K$14/(IF(ROUND(YEAR(E59)/4,0)-YEAR(E59)/4=0,366,365)))*F60)+($K$9-SUM($J$39:J59))*(($K$14/(IF(ROUND(YEAR(E60)/4,0)-YEAR(E60)/4=0,366,365)))*G60),2) -> 0 | L60: 0 | V60: х | W60: х
A61: 0 | B61: 23 | D61: 23 | E61: 2026-01-30 | F61: 1 | G61: 30 | H61: 0 | I61: 0 | J61: =IF(B61<$K$10,$L$12,-$J$37-SUM($J$39:J60)) -> 0 | K61: =ROUND(($K$9-SUM($J$39:J60))*(($K$14/(IF(ROUND(YEAR(E60)/4,0)-YEAR(E60)/4=0,366,365)))*F61)+($K$9-SUM($J$39:J60))*(($K$14/(IF(ROUND(YEAR(E61)/4,0)-YEAR(E61)/4=0,366,365)))*G61),2) -> 0 | L61: 0 | V61: х | W61: х
A62: 0 | B62: 24 | D62: 24 | E62: 2026-02-28 | F62: 1 | G62: 28 | H62: 0 | I62: 0 | J62: =IF(B62<$K$10,$L$12,-$J$37-SUM($J$39:J61)) -> 0 | K62: =ROUND(($K$9-SUM($J$39:J61))*(($K$14/(IF(ROUND(YEAR(E61)/4,0)-YEAR(E61)/4=0,366,365)))*F62)+($K$9-SUM($J$39:J61))*(($K$14/(IF(ROUND(YEAR(E62)/4,0)-YEAR(E62)/4=0,366,365)))*G62),2) -> 0 | L62: 0 | O62: =IF(B62<$K$10,$K$9*$K$19,0) -> 0 | T62: =IF(B62<$K$10,$K$8*$K$22,0) -> 0 | V62: х | W62: х
A63: 0 | B63: 25 | D63: 25 | E63: 2026-03-28 | F63: 0 | G63: 28 | H63: 0 | I63: 0 | J63: =IF(B63<$K$10,$L$12,-$J$37-SUM($J$39:J62)) -> 0 | K63: =ROUND(($K$9-SUM($J$39:J62))*(($K$14/(IF(ROUND(YEAR(E62)/4,0)-YEAR(E62)/4=0,366,365)))*F63)+($K$9-SUM($J$39:J62))*(($K$14/(IF(ROUND(YEAR(E63)/4,0)-YEAR(E63)/4=0,366,365)))*G63),2) -> 0 | L63: 0 | V63: х | W63: х
A64: 0 | B64: 26 | D64: 26 | E64: 2026-04-28 | F64: 3 | G64: 28 | H64: 0 | I64: 0 | J64: =IF(B64<$K$10,$L$12,-$J$37-SUM($J$39:J63)) -> 0 | K64: =ROUND(($K$9-SUM($J$39:J63))*(($K$14/(IF(ROUND(YEAR(E63)/4,0)-YEAR(E63)/4=0,366,365)))*F64)+($K$9-SUM($J$39:J63))*(($K$14/(IF(ROUND(YEAR(E64)/4,0)-YEAR(E64)/4=0,366,365)))*G64),2) -> 0 | L64: 0 | V64: х | W64: х
A65: 0 | B65: 27 | D65: 27 | E65: 2026-05-28 | F65: 2 | G65: 28 | H65: 0 | I65: 0 | J65: =IF(B65<$K$10,$L$12,-$J$37-SUM($J$39:J64)) -> 0 | K65: =ROUND(($K$9-SUM($J$39:J64))*(($K$14/(IF(ROUND(YEAR(E64)/4,0)-YEAR(E64)/4=0,366,365)))*F65)+($K$9-SUM($J$39:J64))*(($K$14/(IF(ROUND(YEAR(E65)/4,0)-YEAR(E65)/4=0,366,365)))*G65),2) -> 0 | L65: 0 | V65: х | W65: х
A66: 0 | B66: 28 | D66: 28 | E66: 2026-06-28 | F66: 3 | G66: 28 | H66: 0 | I66: 0 | J66: =IF(B66<$K$10,$L$12,-$J$37-SUM($J$39:J65)) -> 0 | K66: =ROUND(($K$9-SUM($J$39:J65))*(($K$14/(IF(ROUND(YEAR(E65)/4,0)-YEAR(E65)/4=0,366,365)))*F66)+($K$9-SUM($J$39:J65))*(($K$14/(IF(ROUND(YEAR(E66)/4,0)-YEAR(E66)/4=0,366,365)))*G66),2) -> 0 | L66: 0 | V66: х | W66: х
A67: 0 | B67: 29 | D67: 29 | E67: 2026-07-28 | F67: 2 | G67: 28 | H67: 0 | I67: 0 | J67: =IF(B67<$K$10,$L$12,-$J$37-SUM($J$39:J66)) -> 0 | K67: =ROUND(($K$9-SUM($J$39:J66))*(($K$14/(IF(ROUND(YEAR(E66)/4,0)-YEAR(E66)/4=0,366,365)))*F67)+($K$9-SUM($J$39:J66))*(($K$14/(IF(ROUND(YEAR(E67)/4,0)-YEAR(E67)/4=0,366,365)))*G67),2) -> 0 | L67: 0 | V67: х | W67: х
A68: 0 | B68: 30 | D68: 30 | E68: 2026-08-28 | F68: 3 | G68: 28 | H68: 0 | I68: 0 | J68: =IF(B68<$K$10,$L$12,-$J$37-SUM($J$39:J67)) -> 0 | K68: =ROUND(($K$9-SUM($J$39:J67))*(($K$14/(IF(ROUND(YEAR(E67)/4,0)-YEAR(E67)/4=0,366,365)))*F68)+($K$9-SUM($J$39:J67))*(($K$14/(IF(ROUND(YEAR(E68)/4,0)-YEAR(E68)/4=0,366,365)))*G68),2) -> 0 | L68: 0 | V68: х | W68: х
A69: 0 | B69: 31 | D69: 31 | E69: 2026-09-28 | F69: 3 | G69: 28 | H69: 0 | I69: 0 | J69: =IF(B69<$K$10,$L$12,-$J$37-SUM($J$39:J68)) -> 0 | K69: =ROUND(($K$9-SUM($J$39:J68))*(($K$14/(IF(ROUND(YEAR(E68)/4,0)-YEAR(E68)/4=0,366,365)))*F69)+($K$9-SUM($J$39:J68))*(($K$14/(IF(ROUND(YEAR(E69)/4,0)-YEAR(E69)/4=0,366,365)))*G69),2) -> 0 | L69: 0 | V69: х | W69: х
A70: 0 | B70: 32 | D70: 32 | E70: 2026-10-28 | F70: 2 | G70: 28 | H70: 0 | I70: =SUM(J70:O70) -> 0 | J70: =IF(B70<$K$10,$L$12,-$J$37-SUM($J$39:J69)) -> 0 | K70: =ROUND(($K$9-SUM($J$39:J69))*(($K$14/(IF(ROUND(YEAR(E69)/4,0)-YEAR(E69)/4=0,366,365)))*F70)+($K$9-SUM($J$39:J69))*(($K$14/(IF(ROUND(YEAR(E70)/4,0)-YEAR(E70)/4=0,366,365)))*G70),2) -> 0 | L70: 0 | V70: х | W70: х
A71: 0 | B71: 33 | D71: 33 | E71: 2026-11-28 | F71: 3 | G71: 28 | H71: 0 | I71: 0 | J71: =IF(B71<$K$10,$L$12,-$J$37-SUM($J$39:J70)) -> 0 | K71: =ROUND(($K$9-SUM($J$39:J70))*(($K$14/(IF(ROUND(YEAR(E70)/4,0)-YEAR(E70)/4=0,366,365)))*F71)+($K$9-SUM($J$39:J70))*(($K$14/(IF(ROUND(YEAR(E71)/4,0)-YEAR(E71)/4=0,366,365)))*G71),2) -> 0 | L71: 0 | V71: х | W71: х
A72: 0 | B72: 34 | D72: 34 | E72: 2026-12-28 | F72: 2 | G72: 28 | H72: 0 | I72: 0 | J72: =IF(B72<$K$10,$L$12,-$J$37-SUM($J$39:J71)) -> 0 | K72: =ROUND(($K$9-SUM($J$39:J71))*(($K$14/(IF(ROUND(YEAR(E71)/4,0)-YEAR(E71)/4=0,366,365)))*F72)+($K$9-SUM($J$39:J71))*(($K$14/(IF(ROUND(YEAR(E72)/4,0)-YEAR(E72)/4=0,366,365)))*G72),2) -> 0 | L72: 0 | V72: х | W72: х
A73: 0 | B73: 35 | D73: 35 | E73: 2027-01-28 | F73: 3 | G73: 28 | H73: 0 | I73: 0 | J73: =IF(B73<$K$10,$L$12,-$J$37-SUM($J$39:J72)) -> 0 | K73: =ROUND(($K$9-SUM($J$39:J72))*(($K$14/(IF(ROUND(YEAR(E72)/4,0)-YEAR(E72)/4=0,366,365)))*F73)+($K$9-SUM($J$39:J72))*(($K$14/(IF(ROUND(YEAR(E73)/4,0)-YEAR(E73)/4=0,366,365)))*G73),2) -> 0 | L73: 0 | V73: х | W73: х
A74: 0 | B74: 36 | D74: 36 | E74: 2027-02-28 | F74: 3 | G74: 28 | H74: 0 | I74: 0 | J74: =IF(B74<$K$10,$L$12,-$J$37-SUM($J$39:J73)) -> 0 | K74: =ROUND(($K$9-SUM($J$39:J73))*(($K$14/(IF(ROUND(YEAR(E73)/4,0)-YEAR(E73)/4=0,366,365)))*F74)+($K$9-SUM($J$39:J73))*(($K$14/(IF(ROUND(YEAR(E74)/4,0)-YEAR(E74)/4=0,366,365)))*G74),2) -> 0 | L74: 0 | O74: =IF(B74<$K$10,$K$9*$K$19,0) -> 0 | T74: =IF(B74<$K$10,$K$8*$K$22,0) -> 0 | V74: х | W74: х
A75: 0 | B75: 37 | D75: 37 | E75: 2027-03-28 | F75: 0 | G75: 28 | H75: 0 | I75: 0 | J75: =IF(B75<$K$10,$L$12,-$J$37-SUM($J$39:J74)) -> 0 | K75: =ROUND(($K$9-SUM($J$39:J74))*(($K$14/(IF(ROUND(YEAR(E74)/4,0)-YEAR(E74)/4=0,366,365)))*F75)+($K$9-SUM($J$39:J74))*(($K$14/(IF(ROUND(YEAR(E75)/4,0)-YEAR(E75)/4=0,366,365)))*G75),2) -> 0 | L75: 0 | V75: х | W75: х
A76: 0 | B76: 38 | D76: 38 | E76: 2027-04-28 | F76: 3 | G76: 28 | H76: 0 | I76: 0 | J76: =IF(B76<$K$10,$L$12,-$J$37-SUM($J$39:J75)) -> 0 | K76: =ROUND(($K$9-SUM($J$39:J75))*(($K$14/(IF(ROUND(YEAR(E75)/4,0)-YEAR(E75)/4=0,366,365)))*F76)+($K$9-SUM($J$39:J75))*(($K$14/(IF(ROUND(YEAR(E76)/4,0)-YEAR(E76)/4=0,366,365)))*G76),2) -> 0 | L76: 0 | V76: х | W76: х
A77: 0 | B77: 39 | D77: 39 | E77: 2027-05-28 | F77: 2 | G77: 28 | H77: 0 | I77: 0 | J77: =IF(B77<$K$10,$L$12,-$J$37-SUM($J$39:J76)) -> 0 | K77: =ROUND(($K$9-SUM($J$39:J76))*(($K$14/(IF(ROUND(YEAR(E76)/4,0)-YEAR(E76)/4=0,366,365)))*F77)+($K$9-SUM($J$39:J76))*(($K$14/(IF(ROUND(YEAR(E77)/4,0)-YEAR(E77)/4=0,366,365)))*G77),2) -> 0 | L77: 0 | V77: х | W77: х
A78: 0 | B78: 40 | D78: 40 | E78: 2027-06-28 | F78: 3 | G78: 28 | H78: 0 | I78: 0 | J78: =IF(B78<$K$10,$L$12,-$J$37-SUM($J$39:J77)) -> 0 | K78: =ROUND(($K$9-SUM($J$39:J77))*(($K$14/(IF(ROUND(YEAR(E77)/4,0)-YEAR(E77)/4=0,366,365)))*F78)+($K$9-SUM($J$39:J77))*(($K$14/(IF(ROUND(YEAR(E78)/4,0)-YEAR(E78)/4=0,366,365)))*G78),2) -> 0 | L78: 0 | V78: х | W78: х
A79: 0 | B79: 41 | D79: 41 | E79: 2027-07-28 | F79: 2 | G79: 28 | H79: 0 | I79: 0 | J79: =IF(B79<$K$10,$L$12,-$J$37-SUM($J$39:J78)) -> 0 | K79: =ROUND(($K$9-SUM($J$39:J78))*(($K$14/(IF(ROUND(YEAR(E78)/4,0)-YEAR(E78)/4=0,366,365)))*F79)+($K$9-SUM($J$39:J78))*(($K$14/(IF(ROUND(YEAR(E79)/4,0)-YEAR(E79)/4=0,366,365)))*G79),2) -> 0 | L79: 0 | V79: х | W79: х
A80: 0 | B80: 42 | D80: 42 | E80: 2027-08-28 | F80: 3 | G80: 28 | H80: 0 | I80: 0 | J80: =IF(B80<$K$10,$L$12,-$J$37-SUM($J$39:J79)) -> 0 | K80: =ROUND(($K$9-SUM($J$39:J79))*(($K$14/(IF(ROUND(YEAR(E79)/4,0)-YEAR(E79)/4=0,366,365)))*F80)+($K$9-SUM($J$39:J79))*(($K$14/(IF(ROUND(YEAR(E80)/4,0)-YEAR(E80)/4=0,366,365)))*G80),2) -> 0 | L80: 0 | V80: х | W80: х
A81: 0 | B81: 43 | D81: 43 | E81: 2027-09-28 | F81: 3 | G81: 28 | H81: 0 | I81: 0 | J81: =IF(B81<$K$10,$L$12,-$J$37-SUM($J$39:J80)) -> 0 | K81: =ROUND(($K$9-SUM($J$39:J80))*(($K$14/(IF(ROUND(YEAR(E80)/4,0)-YEAR(E80)/4=0,366,365)))*F81)+($K$9-SUM($J$39:J80))*(($K$14/(IF(ROUND(YEAR(E81)/4,0)-YEAR(E81)/4=0,366,365)))*G81),2) -> 0 | L81: 0 | V81: х | W81: х
A82: 0 | B82: 44 | D82: 44 | E82: 2027-10-28 | F82: 2 | G82: 28 | H82: 0 | I82: 0 | J82: =IF(B82<$K$10,$L$12,-$J$37-SUM($J$39:J81)) -> 0 | K82: =ROUND(($K$9-SUM($J$39:J81))*(($K$14/(IF(ROUND(YEAR(E81)/4,0)-YEAR(E81)/4=0,366,365)))*F82)+($K$9-SUM($J$39:J81))*(($K$14/(IF(ROUND(YEAR(E82)/4,0)-YEAR(E82)/4=0,366,365)))*G82),2) -> 0 | L82: 0 | V82: х | W82: х
A83: 0 | B83: 45 | D83: 45 | E83: 2027-11-28 | F83: 3 | G83: 28 | H83: 0 | I83: 0 | J83: =IF(B83<$K$10,$L$12,-$J$37-SUM($J$39:J82)) -> 0 | K83: =ROUND(($K$9-SUM($J$39:J82))*(($K$14/(IF(ROUND(YEAR(E82)/4,0)-YEAR(E82)/4=0,366,365)))*F83)+($K$9-SUM($J$39:J82))*(($K$14/(IF(ROUND(YEAR(E83)/4,0)-YEAR(E83)/4=0,366,365)))*G83),2) -> 0 | L83: 0 | V83: х | W83: х
A84: 0 | B84: 46 | D84: 46 | E84: 2027-12-28 | F84: 2 | G84: 28 | H84: 0 | I84: 0 | J84: =IF(B84<$K$10,$L$12,-$J$37-SUM($J$39:J83)) -> 0 | K84: =ROUND(($K$9-SUM($J$39:J83))*(($K$14/(IF(ROUND(YEAR(E83)/4,0)-YEAR(E83)/4=0,366,365)))*F84)+($K$9-SUM($J$39:J83))*(($K$14/(IF(ROUND(YEAR(E84)/4,0)-YEAR(E84)/4=0,366,365)))*G84),2) -> 0 | L84: 0 | V84: х | W84: х
A85: 0 | B85: 47 | D85: 47 | E85: 2028-01-28 | F85: 3 | G85: 28 | H85: 0 | I85: 0 | J85: =IF(B85<$K$10,$L$12,-$J$37-SUM($J$39:J84)) -> 0 | K85: =ROUND(($K$9-SUM($J$39:J84))*(($K$14/(IF(ROUND(YEAR(E84)/4,0)-YEAR(E84)/4=0,366,365)))*F85)+($K$9-SUM($J$39:J84))*(($K$14/(IF(ROUND(YEAR(E85)/4,0)-YEAR(E85)/4=0,366,365)))*G85),2) -> 0 | L85: 0 | V85: х | W85: х
A86: 0 | B86: 48 | D86: 48 | E86: 2028-02-28 | F86: 3 | G86: 28 | H86: 0 | I86: 0 | J86: =IF(B86<$K$10,$L$12,-$J$37-SUM($J$39:J85)) -> 0 | K86: =ROUND(($K$9-SUM($J$39:J85))*(($K$14/(IF(ROUND(YEAR(E85)/4,0)-YEAR(E85)/4=0,366,365)))*F86)+($K$9-SUM($J$39:J85))*(($K$14/(IF(ROUND(YEAR(E86)/4,0)-YEAR(E86)/4=0,366,365)))*G86),2) -> 0 | L86: 0 | O86: =IF(B86<$K$10,$K$9*$K$19,0) -> 0 | T86: =IF(B86<$K$10,$K$8*$K$22,0) -> 0 | V86: х | W86: х
A87: 0 | B87: 49 | D87: 49 | E87: 2028-03-28 | F87: 1 | G87: 28 | H87: 0 | I87: 0 | J87: =IF(B87<$K$10,$L$12,-$J$37-SUM($J$39:J86)) -> 0 | K87: =ROUND(($K$9-SUM($J$39:J86))*(($K$14/(IF(ROUND(YEAR(E86)/4,0)-YEAR(E86)/4=0,366,365)))*F87)+($K$9-SUM($J$39:J86))*(($K$14/(IF(ROUND(YEAR(E87)/4,0)-YEAR(E87)/4=0,366,365)))*G87),2) -> 0 | L87: 0 | V87: х | W87: х
A88: 0 | B88: 50 | D88: 50 | E88: 2028-04-28 | F88: 3 | G88: 28 | H88: 0 | I88: 0 | J88: =IF(B88<$K$10,$L$12,-$J$37-SUM($J$39:J87)) -> 0 | K88: =ROUND(($K$9-SUM($J$39:J87))*(($K$14/(IF(ROUND(YEAR(E87)/4,0)-YEAR(E87)/4=0,366,365)))*F88)+($K$9-SUM($J$39:J87))*(($K$14/(IF(ROUND(YEAR(E88)/4,0)-YEAR(E88)/4=0,366,365)))*G88),2) -> 0 | L88: 0 | V88: х | W88: х
A89: 0 | B89: 51 | D89: 51 | E89: 2028-05-28 | F89: 2 | G89: 28 | H89: 0 | I89: 0 | J89: =IF(B89<$K$10,$L$12,-$J$37-SUM($J$39:J88)) -> 0 | K89: =ROUND(($K$9-SUM($J$39:J88))*(($K$14/(IF(ROUND(YEAR(E88)/4,0)-YEAR(E88)/4=0,366,365)))*F89)+($K$9-SUM($J$39:J88))*(($K$14/(IF(ROUND(YEAR(E89)/4,0)-YEAR(E89)/4=0,366,365)))*G89),2) -> 0 | L89: 0 | V89: х | W89: х
A90: 0 | B90: 52 | D90: 52 | E90: 2028-06-28 | F90: 3 | G90: 28 | H90: 0 | I90: 0 | J90: =IF(B90<$K$10,$L$12,-$J$37-SUM($J$39:J89)) -> 0 | K90: =ROUND(($K$9-SUM($J$39:J89))*(($K$14/(IF(ROUND(YEAR(E89)/4,0)-YEAR(E89)/4=0,366,365)))*F90)+($K$9-SUM($J$39:J89))*(($K$14/(IF(ROUND(YEAR(E90)/4,0)-YEAR(E90)/4=0,366,365)))*G90),2) -> 0 | L90: 0 | V90: х | W90: х
A91: 0 | B91: 53 | D91: 53 | E91: 2028-07-28 | F91: 2 | G91: 28 | H91: 0 | I91: 0 | J91: =IF(B91<$K$10,$L$12,-$J$37-SUM($J$39:J90)) -> 0 | K91: =ROUND(($K$9-SUM($J$39:J90))*(($K$14/(IF(ROUND(YEAR(E90)/4,0)-YEAR(E90)/4=0,366,365)))*F91)+($K$9-SUM($J$39:J90))*(($K$14/(IF(ROUND(YEAR(E91)/4,0)-YEAR(E91)/4=0,366,365)))*G91),2) -> 0 | L91: 0 | V91: х | W91: х
A92: 0 | B92: 54 | D92: 54 | E92: 2028-08-28 | F92: 3 | G92: 28 | H92: 0 | I92: 0 | J92: =IF(B92<$K$10,$L$12,-$J$37-SUM($J$39:J91)) -> 0 | K92: =ROUND(($K$9-SUM($J$39:J91))*(($K$14/(IF(ROUND(YEAR(E91)/4,0)-YEAR(E91)/4=0,366,365)))*F92)+($K$9-SUM($J$39:J91))*(($K$14/(IF(ROUND(YEAR(E92)/4,0)-YEAR(E92)/4=0,366,365)))*G92),2) -> 0 | L92: 0 | V92: х | W92: х
A93: 0 | B93: 55 | D93: 55 | E93: 2028-09-28 | F93: 3 | G93: 28 | H93: 0 | I93: 0 | J93: =IF(B93<$K$10,$L$12,-$J$37-SUM($J$39:J92)) -> 0 | K93: =ROUND(($K$9-SUM($J$39:J92))*(($K$14/(IF(ROUND(YEAR(E92)/4,0)-YEAR(E92)/4=0,366,365)))*F93)+($K$9-SUM($J$39:J92))*(($K$14/(IF(ROUND(YEAR(E93)/4,0)-YEAR(E93)/4=0,366,365)))*G93),2) -> 0 | L93: 0 | V93: х | W93: х
A94: 0 | B94: 56 | D94: 56 | E94: 2028-10-28 | F94: 2 | G94: 28 | H94: 0 | I94: 0 | J94: =IF(B94<$K$10,$L$12,-$J$37-SUM($J$39:J93)) -> 0 | K94: =ROUND(($K$9-SUM($J$39:J93))*(($K$14/(IF(ROUND(YEAR(E93)/4,0)-YEAR(E93)/4=0,366,365)))*F94)+($K$9-SUM($J$39:J93))*(($K$14/(IF(ROUND(YEAR(E94)/4,0)-YEAR(E94)/4=0,366,365)))*G94),2) -> 0 | L94: 0 | V94: х | W94: х
A95: 0 | B95: 57 | D95: 57 | E95: 2028-11-28 | F95: 3 | G95: 28 | H95: 0 | I95: 0 | J95: =IF(B95<$K$10,$L$12,-$J$37-SUM($J$39:J94)) -> 0 | K95: =ROUND(($K$9-SUM($J$39:J94))*(($K$14/(IF(ROUND(YEAR(E94)/4,0)-YEAR(E94)/4=0,366,365)))*F95)+($K$9-SUM($J$39:J94))*(($K$14/(IF(ROUND(YEAR(E95)/4,0)-YEAR(E95)/4=0,366,365)))*G95),2) -> 0 | L95: 0 | V95: х | W95: х
A96: 0 | B96: 58 | D96: 58 | E96: 2028-12-28 | F96: 2 | G96: 28 | H96: 0 | I96: 0 | J96: =IF(B96<$K$10,$L$12,-$J$37-SUM($J$39:J95)) -> 0 | K96: =ROUND(($K$9-SUM($J$39:J95))*(($K$14/(IF(ROUND(YEAR(E95)/4,0)-YEAR(E95)/4=0,366,365)))*F96)+($K$9-SUM($J$39:J95))*(($K$14/(IF(ROUND(YEAR(E96)/4,0)-YEAR(E96)/4=0,366,365)))*G96),2) -> 0 | L96: 0 | V96: х | W96: х
A97: 0 | B97: 59 | D97: 59 | E97: 2029-01-28 | F97: 3 | G97: 28 | H97: 0 | I97: 0 | J97: =IF(B97<$K$10,$L$12,-$J$37-SUM($J$39:J96)) -> 0 | K97: =ROUND(($K$9-SUM($J$39:J96))*(($K$14/(IF(ROUND(YEAR(E96)/4,0)-YEAR(E96)/4=0,366,365)))*F97)+($K$9-SUM($J$39:J96))*(($K$14/(IF(ROUND(YEAR(E97)/4,0)-YEAR(E97)/4=0,366,365)))*G97),2) -> 0 | L97: 0 | V97: х | W97: х
A98: 0 | B98: 60 | D98: 60 | E98: 2029-02-28 | F98: 3 | G98: 28 | H98: 0 | I98: 0 | J98: =IF(B98<$K$10,$L$12,-$J$37-SUM($J$39:J97)) -> 0 | K98: =ROUND(($K$9-SUM($J$39:J97))*(($K$14/(IF(ROUND(YEAR(E97)/4,0)-YEAR(E97)/4=0,366,365)))*F98)+($K$9-SUM($J$39:J97))*(($K$14/(IF(ROUND(YEAR(E98)/4,0)-YEAR(E98)/4=0,366,365)))*G98),2) -> 0 | L98: 0 | O98: =IF(B98<$K$10,$K$9*$K$19,0) -> 0 | T98: =IF(B98<$K$10,$K$8*$K$22,0) -> 0 | V98: х | W98: х
A99: 0 | B99: 61 | D99: 61 | E99: 2029-03-28 | F99: 0 | G99: 28 | H99: 0 | I99: 0 | J99: =IF(B99<$K$10,$L$12,-$J$37-SUM($J$39:J98)) -> 0 | K99: =ROUND(($K$9-SUM($J$39:J98))*(($K$14/(IF(ROUND(YEAR(E98)/4,0)-YEAR(E98)/4=0,366,365)))*F99)+($K$9-SUM($J$39:J98))*(($K$14/(IF(ROUND(YEAR(E99)/4,0)-YEAR(E99)/4=0,366,365)))*G99),2) -> 0 | L99: 0 | V99: х | W99: х
A100: 0 | B100: 62 | D100: 62 | E100: 2029-04-28 | F100: 3 | G100: 28 | H100: 0 | I100: 0 | J100: =IF(B100<$K$10,$L$12,-$J$37-SUM($J$39:J99)) -> 0 | K100: =ROUND(($K$9-SUM($J$39:J99))*(($K$14/(IF(ROUND(YEAR(E99)/4,0)-YEAR(E99)/4=0,366,365)))*F100)+($K$9-SUM($J$39:J99))*(($K$14/(IF(ROUND(YEAR(E100)/4,0)-YEAR(E100)/4=0,366,365)))*G100),2) -> 0 | L100: 0 | V100: х | W100: х
A101: 0 | B101: 63 | D101: 63 | E101: 2029-05-28 | F101: 2 | G101: 28 | H101: 0 | I101: 0 | J101: =IF(B101<$K$10,$L$12,-$J$37-SUM($J$39:J100)) -> 0 | K101: =ROUND(($K$9-SUM($J$39:J100))*(($K$14/(IF(ROUND(YEAR(E100)/4,0)-YEAR(E100)/4=0,366,365)))*F101)+($K$9-SUM($J$39:J100))*(($K$14/(IF(ROUND(YEAR(E101)/4,0)-YEAR(E101)/4=0,366,365)))*G101),2) -> 0 | L101: 0 | V101: х | W101: х
A102: 0 | B102: 64 | D102: 64 | E102: 2029-06-28 | F102: 3 | G102: 28 | H102: 0 | I102: 0 | J102: =IF(B102<$K$10,$L$12,-$J$37-SUM($J$39:J101)) -> 0 | K102: =ROUND(($K$9-SUM($J$39:J101))*(($K$14/(IF(ROUND(YEAR(E101)/4,0)-YEAR(E101)/4=0,366,365)))*F102)+($K$9-SUM($J$39:J101))*(($K$14/(IF(ROUND(YEAR(E102)/4,0)-YEAR(E102)/4=0,366,365)))*G102),2) -> 0 | L102: 0 | V102: х | W102: х
A103: 0 | B103: 65 | D103: =D102+1 -> 65 | E103: 2029-07-28 | F103: 2 | G103: 28 | H103: 0 | I103: 0 | J103: =IF(B103<$K$10,$L$12,-$J$37-SUM($J$39:J102)) -> 0 | K103: =ROUND(($K$9-SUM($J$39:J102))*(($K$14/(IF(ROUND(YEAR(E102)/4,0)-YEAR(E102)/4=0,366,365)))*F103)+($K$9-SUM($J$39:J102))*(($K$14/(IF(ROUND(YEAR(E103)/4,0)-YEAR(E103)/4=0,366,365)))*G103),2) -> 0 | L103: =IF(A103=1,IF(AND(YEAR($K$11)=YEAR(EDATE(E102,1)),MONTH($K$11)=MONTH(EDATE(E102,1))),$O$18-$O$42,$O$18),0) -> 0 | V103: х | W103: х
A104: 0 | B104: =B103+1 -> 66 | D104: 66 | E104: 2029-08-28 | F104: 3 | G104: 28 | H104: 0 | I104: 0 | J104: =IF(B104<$K$10,$L$12,-$J$37-SUM($J$39:J103)) -> 0 | K104: =ROUND(($K$9-SUM($J$39:J103))*(($K$14/(IF(ROUND(YEAR(E103)/4,0)-YEAR(E103)/4=0,366,365)))*F104)+($K$9-SUM($J$39:J103))*(($K$14/(IF(ROUND(YEAR(E104)/4,0)-YEAR(E104)/4=0,366,365)))*G104),2) -> 0 | L104: 0 | V104: х | W104: х
A105: 0 | B105: 67 | D105: 67 | E105: 2029-09-28 | F105: 3 | G105: 28 | H105: 0 | I105: 0 | J105: =IF(B105<$K$10,$L$12,-$J$37-SUM($J$39:J104)) -> 0 | K105: =ROUND(($K$9-SUM($J$39:J104))*(($K$14/(IF(ROUND(YEAR(E104)/4,0)-YEAR(E104)/4=0,366,365)))*F105)+($K$9-SUM($J$39:J104))*(($K$14/(IF(ROUND(YEAR(E105)/4,0)-YEAR(E105)/4=0,366,365)))*G105),2) -> 0 | L105: 0 | V105: х | W105: х
A106: 0 | B106: 68 | D106: 68 | E106: 2029-10-28 | F106: 2 | G106: 28 | H106: 0 | I106: 0 | J106: =IF(B106<$K$10,$L$12,-$J$37-SUM($J$39:J105)) -> 0 | K106: =ROUND(($K$9-SUM($J$39:J105))*(($K$14/(IF(ROUND(YEAR(E105)/4,0)-YEAR(E105)/4=0,366,365)))*F106)+($K$9-SUM($J$39:J105))*(($K$14/(IF(ROUND(YEAR(E106)/4,0)-YEAR(E106)/4=0,366,365)))*G106),2) -> 0 | L106: 0 | V106: х | W106: х
A107: 0 | B107: 69 | D107: 69 | E107: 2029-11-28 | F107: 3 | G107: 28 | H107: 0 | I107: 0 | J107: =IF(B107<$K$10,$L$12,-$J$37-SUM($J$39:J106)) -> 0 | K107: =ROUND(($K$9-SUM($J$39:J106))*(($K$14/(IF(ROUND(YEAR(E106)/4,0)-YEAR(E106)/4=0,366,365)))*F107)+($K$9-SUM($J$39:J106))*(($K$14/(IF(ROUND(YEAR(E107)/4,0)-YEAR(E107)/4=0,366,365)))*G107),2) -> 0 | L107: 0 | V107: х | W107: х
A108: 0 | B108: 70 | D108: 70 | E108: 2029-12-28 | F108: 2 | G108: 28 | H108: 0 | I108: 0 | J108: =IF(B108<$K$10,$L$12,-$J$37-SUM($J$39:J107)) -> 0 | K108: =ROUND(($K$9-SUM($J$39:J107))*(($K$14/(IF(ROUND(YEAR(E107)/4,0)-YEAR(E107)/4=0,366,365)))*F108)+($K$9-SUM($J$39:J107))*(($K$14/(IF(ROUND(YEAR(E108)/4,0)-YEAR(E108)/4=0,366,365)))*G108),2) -> 0 | L108: 0 | V108: х | W108: х
A109: 0 | B109: 71 | D109: 71 | E109: 2030-01-28 | F109: 3 | G109: 28 | H109: 0 | I109: 0 | J109: =IF(B109<$K$10,$L$12,-$J$37-SUM($J$39:J108)) -> 0 | K109: =ROUND(($K$9-SUM($J$39:J108))*(($K$14/(IF(ROUND(YEAR(E108)/4,0)-YEAR(E108)/4=0,366,365)))*F109)+($K$9-SUM($J$39:J108))*(($K$14/(IF(ROUND(YEAR(E109)/4,0)-YEAR(E109)/4=0,366,365)))*G109),2) -> 0 | L109: 0 | V109: х | W109: х
A110: 0 | B110: 72 | D110: 72 | E110: 2030-02-28 | F110: 3 | G110: 28 | H110: 0 | I110: 0 | J110: =IF(B110<$K$10,$L$12,-$J$37-SUM($J$39:J109)) -> 0 | K110: =ROUND(($K$9-SUM($J$39:J109))*(($K$14/(IF(ROUND(YEAR(E109)/4,0)-YEAR(E109)/4=0,366,365)))*F110)+($K$9-SUM($J$39:J109))*(($K$14/(IF(ROUND(YEAR(E110)/4,0)-YEAR(E110)/4=0,366,365)))*G110),2) -> 0 | L110: 0 | V110: х | W110: х
A111: 1 | D111: Усього | E111: х | H111: =SUM(H39:H74) -> 363 | I111: =SUM(I39:I110) -> 13491.23 | J111: =SUM(J39:J110) -> 10000 | K111: =SUM(K39:K110) -> 2191.23 | L111: =SUM(L39:L110) -> 1300 | M111: =SUM(M37:M110) -> 0 | N111: 0 | O111: 0 | P111: 0 | Q111: 0 | R111: 0 | S111: 0 | T111: 0 | U111: 0 | V111: =XIRR(I37:I110,E37:E110) -> 0.4479236424 | W111: =SUM(J111:U111) -> 13491.23
A112: 1
A113: 1
A114: 1 | D114: Загальні витрати за кредитом (проценти за користування кредитом, комісії та інші обов'язкові платежі за додаткові та/або супутні послуги кредитодавця,кредитного посередника (за наявності) та третіх осіб, пов'язані з отриманням, обслуговуванням та поверненням кредиту), грн. | Q114: =SUBTOTAL(9,K111:U111) -> 3491.23
A115: 1 | D115: Орієнтовна загальна вартість кредиту для споживача за весь строк користування кредитом (у т.ч. тіло кредиту, відсотки, комісії та інші платежі), грн. | Q115: =W111 -> 13491.23
A116: 1 | D116: Сума платежу за розрахунковий період, грн. | Q116: =W111/K10 -> 1124.269167
A117: 1 | D117: Орієнтовна реальна річна процентна ставка, % річних | Q117: =V111 -> 0.4479236424
A118: 1 | D118: Застереження: наведені обчислення орієнтовної реальної річної процентної ставки та орієнтовної загальної вартості кредиту для споживача є репрезентативними та базуються на обраних споживачем умовах кредитування, викладених вище, і на припущенні, що договір про споживчий кредит залишатиметься дійсним протягом погодженого строку, а кредитодавець і споживач виконають свої обов’язки на умовах та у строки, визначені в договорі.
A119: 1 | D119: Орієнтовна реальна річна процентна ставка обчислена на основі припущення, що процентна ставка та інші платежі за послуги кредитодавця залишатимуться незмінними та застосовуватимуться протягом строку дії договору про споживчий кредит. Орієнтовна реальна річна процентна ставка обчислена з використанням фінансової функції ЧИСТВНДОХ програмного продукту Microsoft Excel.
A120: 1 | D120: Застереження: використання інших способів надання кредиту та/або зміна інших вищезазначених умов кредитування можуть мати наслідком застосування іншої орієнтовної реальної річної процентної ставки та орієнтовної загальної вартості кредиту для споживача.
A121: 1 | D121: Застереження: наведені обчислення платежу по кредиту розраховуються за фактичну кількість днів у місяці та базуються на припущенні, що споживач постійно користується кредитом та погашає заборгованість по тілу кредита в дату повернення кредиту.
A122: 1
